bitfinex/quotes_SOLUSD_20240822
["timestamp","ask_amount","ask_price","bid_price","bid_amount"]
[1724313637350,1.74011903,143.7,143.66,26.6263]
[1724313637553,8.69901903,143.7,143.66,16.1763]
[1724313638035,10.45,143.69,143.66,16.1763]
[1724313638238,1.74023576,143.68,143.66,16.1763]
[1724313638435,1.74023576,143.68,143.64,6.2556]
[1724313638623,12.19030792,143.67,143.62,15.9134]
[1724313638821,10.45,143.65,143.62,15.9134]
[1724313639030,10.45,143.65,143.62,26.3634]
[1724313639233,1.74063629,143.64,143.62,10.45]
[1724313639641,10.45,143.65,143.62,10.45]
[1724313639831,10.45,143.65,143.58,60.2889]
[1724313640033,10.45,143.65,143.59,10.45]
[1724313641133,10.45,143.65,143.6,1.3925743]
[1724313644925,1.7406713,143.64,143.59,10.45]
[1724313646150,6.9648,143.58,143.49,28.5124]
[1724313646330,10.45,143.56,143.5,17.4206]
[1724313646843,10.45,143.57,143.52,10.45]
[1724313648028,1.74157817,143.59,143.52,10.45]
[1724313648229,0.12549,143.63,143.53,31.84319029]
[1724313648438,26.11,143.62,143.54,24.3827]
[1724313648633,33.073,143.62,143.55,20.0]
[1724313649237,33.073,143.62,143.54,26.9666]
[1724313649831,26.11,143.6,143.54,20.0]
[1724313650035,1.74142633,143.59,143.54,20.0]
[1724313650345,1.74142633,143.59,143.53,20.0]
[1724313651055,33.0738,143.6,143.53,20.0]
[1724313651356,1.74161142,143.59,143.53,20.0]
[1724313651932,33.0747,143.58,143.5,6.9684]
[1724313652131,33.0747,143.58,143.49,28.5127]
[1724313653475,33.0747,143.58,143.5,1.39348918]
[1724313653757,33.0747,143.58,143.5,20.0]
[1724313654342,26.11,143.56,143.5,26.9686]
[1724313654744,26.11,143.56,143.5,28.36208009]
[1724313655154,26.11,143.56,143.5,26.9686]
[1724313656344,26.11,143.56,143.5,20.0]
[1724313656540,26.11,143.56,143.49,28.5126]
[1724313657058,1.74186427,143.55,143.49,22.334]
[1724313658047,1.74186427,143.55,143.49,15.3651]
[1724313659672,26.11,143.56,143.49,22.3341]
[1724313660462,1.74185507,143.55,143.49,22.3341]
[1724313660848,26.11,143.56,143.49,22.3341]
[1724313661041,26.11,143.56,143.5,1.39349514]
[1724313661269,47.7368,143.58,143.5,8.36199514]
[1724313661458,47.7368,143.58,143.5,6.9685]
[1724313662046,54.7016,143.58,143.5,6.9685]
[1724313662552,34.8156286,143.6,143.52,6.9676]
[1724313662762,33.074,143.6,143.52,6.9676]
[1724313663452,33.074,143.6,143.51,6.9679]
[1724313663890,6.9643,143.59,143.51,6.9679]
[1724313665008,26.11,143.58,143.51,6.9679]
[1724313665203,27.85160174,143.58,143.51,6.9679]
[1724313665504,27.85162103,143.58,143.51,6.9679]
[1724313665806,26.11,143.58,143.51,6.9679]
[1724313667108,33.0738,143.6,143.52,8.3608993]
[1724313667605,33.0738,143.6,143.52,6.9676]
[1724313668296,33.0738,143.6,143.51,6.9679]
[1724313668518,10.45,143.58,143.51,6.9679]
[1724313668878,12.19160201,143.58,143.51,6.9679]
[1724313669426,12.19160201,143.58,143.52,6.9675]
[1724313669912,10.45,143.58,143.52,6.9675]
[1724313670278,10.45,143.58,143.53,6.967]
[1724313670508,13.0296,143.61,143.53,6.967]
[1724313670690,10.45,143.6,143.53,8.36015824]
[1724313670873,10.45,143.6,143.53,6.967]
[1724313671601,16.5163,143.61,143.54,6.9666]
[1724313672325,16.5163,143.61,143.53,6.967]
[1724313672695,10.45,143.59,143.53,6.967]
[1724313672932,1.74140857,143.58,143.52,24.51189]
[1724313674130,10.45,143.59,143.52,24.51189]
[1724313674319,10.45,143.59,143.53,6.967]
[1724313674729,10.45,143.59,143.52,17.54429]
[1724313674730,16.5963,143.62,143.54,38.80919825]
[1724313674932,7.27609599,143.63,143.56,10.45]
[1724313675224,7.27609599,143.63,143.57,1.39279264]
[1724313675530,7.27609599,143.63,143.58,1.39266119]
[1724313675711,7.27609599,143.63,143.58,11.84266119]
[1724313676329,7.27609599,143.63,143.58,10.45]
[1724313676542,7.27609599,143.63,143.56,70.4696]
[1724313676810,7.27609599,143.63,143.57,45.25098]
[1724313677129,13.3614,143.65,143.57,45.25098]
[1724313677130,6.9619,143.64,143.57,45.25098]
[1724313681032,0.14259385,143.58,143.57,45.25098]
[1724313681618,0.14259385,143.58,143.57,48.040453]
[1724313682856,0.14259385,143.58,143.57,49.43306504]
[1724313686749,0.14259385,143.58,143.57,48.040453]
[1724313687252,0.14259385,143.58,143.57,49.43306248]
[1724313687826,0.14259385,143.58,143.57,4.18208248]
[1724313688231,0.14259385,143.58,143.57,2.789473]
[1724313689236,0.14259385,143.58,143.57,49.4330621]
[1724313689436,0.14259385,143.58,143.57,55.6856621]
[1724313690756,0.13422258,143.59,143.58,26.9647]
[1724313690929,0.13422258,143.59,143.58,119.69796972]
[1724313692170,0.13422258,143.59,143.58,93.60796972]
[1724313692343,0.13422258,143.59,143.58,92.21568]
[1724313693058,0.13422258,143.59,143.58,93.60813195]
[1724313694361,0.13422258,143.59,143.58,73.60813195]
[1724313695362,0.13422258,143.59,143.58,66.64343195]
[1724313695657,0.13422258,143.59,143.58,1.39257301]
[1724313696397,0.13422258,143.59,143.57,16.007173]
[1724313697284,0.13422258,143.59,143.58,1.39260124]
[1724313697898,0.13422258,143.59,143.57,16.007173]
[1724313698398,0.13422258,143.59,143.58,1.39260169]
[1724313698868,0.13422258,143.59,143.58,1.64358169]
[1724313699065,0.13422258,143.59,143.58,46.64358169]
[1724313699289,0.13422258,143.59,143.58,57.08358169]
[1724313699997,0.13422258,143.59,143.58,46.64358169]
[1724313700877,0.27684504,143.59,143.58,46.64358169]
[1724313701081,0.27684504,143.59,143.57,9.042073]
[1724313701568,0.14262246,143.59,143.57,9.042073]
[1724313701993,0.14262246,143.59,143.58,1.39260091]
[1724313702285,0.14262246,143.59,143.58,1.64358091]
[1724313702485,0.14262246,143.59,143.58,46.64358091]
[1724313702794,0.14262246,143.59,143.58,73.60828091]
[1724313703103,0.14262246,143.59,143.58,76.39750191]
[1724313703691,0.14262246,143.59,143.58,69.43280191]
[1724313704186,0.14262246,143.59,143.58,122.48750191]
[1724313705304,0.13604857,143.61,143.6,26.9637]
[1724313705467,0.13604857,143.61,143.6,119.69671495]
[1724313707205,0.13604857,143.61,143.6,92.21468]
[1724313708568,0.13604857,143.61,143.6,72.21468]
[1724313708992,0.13604857,143.61,143.6,20.0]
[1724313709668,0.13604857,143.61,143.6,21.39237543]
[1724313710926,0.13604857,143.61,143.6,48.35607543]
[1724313711128,0.13604857,143.61,143.6,93.60705543]
[1724313712934,0.13604857,143.61,143.6,96.39579243]
[1724313716706,0.13604857,143.61,143.6,122.48579243]
[1724313720701,0.27566242,143.61,143.6,122.48579243]
[1724313721504,0.13961385,143.61,143.6,122.48579243]
[1724313723331,0.13961385,143.61,143.6,95.003417]
[1724313723537,0.13961385,143.61,143.6,42.914227]
[1724313723707,0.13961385,143.61,143.6,22.914227]
[1724313724135,0.13961385,143.61,143.6,22.788737]
[1724313724638,0.13961385,143.61,143.6,2.788737]
[1724313727240,0.13961385,143.61,143.57,20.0]
[1724313727411,0.13961385,143.61,143.57,22.789528]
[1724313728918,0.13961385,143.61,143.57,24.182282]
[1724313729652,0.13961385,143.61,143.57,22.789528]
[1724313730026,0.13961385,143.61,143.57,24.18230354]
[1724313730343,0.13961385,143.61,143.58,1.39274106]
[1724313731358,0.13961385,143.61,143.57,22.789528]
[1724313731655,0.13961385,143.61,143.57,2.789528]
[1724313733356,10.44,143.58,143.57,2.789528]
[1724313733528,10.44,143.58,143.5,20.0]
[1724313733730,1.74151614,143.57,143.51,10.44]
[1724313734031,10.44,143.56,143.51,10.44]
[1724313736457,48.1391,143.58,143.51,10.44]
[1724313737065,1.74153068,143.57,143.51,10.44]
[1724313738249,27.87177109,143.56,143.49,17.4218]
[1724313738568,34.83777109,143.56,143.48,26.9694]
[1724313738770,34.83777109,143.56,143.49,20.0]
[1724313739144,33.096,143.56,143.49,20.0]
[1724313739466,26.13,143.56,143.49,26.969]
[1724313739841,26.13,143.56,143.5,1.3933684]
[1724313740852,0.12643825,143.51,143.5,1.3933684]
[1724313745367,0.12643825,143.51,143.5,1.6443484]
[1724313745668,0.12643825,143.51,143.5,73.6129484]
[1724313745841,0.12643825,143.51,143.5,93.6129484]
[1724313746046,0.12643825,143.51,143.5,108.6767484]
[1724313747449,0.1489387,143.52,143.51,24.3884]
[1724313747678,0.15023342,143.54,143.52,21.39271414]
[1724313747857,0.15023342,143.54,143.53,98.34808]
[1724313748540,0.15023342,143.54,143.53,101.137776]
[1724313751466,0.15023342,143.54,143.53,102.53051774]
[1724313752851,0.15023342,143.54,143.53,31.14953903]
[1724313753047,0.15023342,143.54,143.53,29.756796]
[1724313754285,0.15023342,143.54,143.53,74.756796]
[1724313754456,0.15023342,143.54,143.53,75.007776]
[1724313754857,0.15023342,143.54,143.53,22.789696]
[1724313755076,0.15023342,143.54,143.53,2.789696]
[1724313755380,0.15023342,143.54,143.53,4.18284724]
[1724313756194,0.15023342,143.54,143.53,11.14994724]
[1724313756372,0.15023342,143.54,143.53,56.40092724]
[1724313758001,0.15023342,143.54,143.53,76.40092724]
[1724313758177,0.15023342,143.54,143.53,96.40092724]
[1724313758569,0.15023342,143.54,143.53,106.84092724]
[1724313760906,0.28597724,143.54,143.53,124.25882724]
[1724313761490,0.13574382,143.54,143.53,124.25882724]
[1724313761915,0.13574382,143.54,143.53,92.425676]
[1724313763414,0.13574382,143.54,143.53,47.174696]
[1724313763581,0.13574382,143.54,143.53,48.56774469]
[1724313764106,0.13574382,143.54,143.53,68.56774469]
[1724313764623,0.13574382,143.54,143.53,79.13323469]
[1724313764802,0.13574382,143.54,143.53,124.25872469]
[1724313769878,0.13574382,143.54,143.53,122.865676]
[1724313770095,0.13574382,143.54,143.53,40.207596]
[1724313770322,0.13574382,143.54,143.53,47.174696]
[1724313773310,0.13574382,143.54,143.53,92.425676]
[1724313774539,0.13574382,143.54,143.53,93.81866282]
[1724313775726,0.13574382,143.54,143.53,113.81866282]
[1724313778507,0.13574382,143.54,143.53,92.425676]
[1724313778705,0.13574382,143.54,143.53,47.300186]
[1724313779320,0.13574382,143.54,143.53,47.174696]
[1724313779911,0.13574382,143.54,143.53,48.56781002]
[1724313780120,0.13574382,143.54,143.53,48.69330002]
[1724313780729,0.28611687,143.54,143.53,48.69330002]
[1724313781628,0.15037305,143.54,143.53,48.69330002]
[1724313790032,0.15037305,143.54,143.53,47.300186]
[1724313790437,0.15037305,143.54,143.53,48.69321077]
[1724313791274,0.15037305,143.54,143.53,47.300186]
[1724313791447,0.15037305,143.54,143.53,48.69320902]
[1724313791633,0.15037305,143.54,143.53,47.174696]
[1724313792160,0.15037305,143.54,143.53,40.207596]
[1724313792357,0.15037305,143.54,143.53,20.207596]
[1724313792758,0.15037305,143.54,143.53,2.789696]
[1724313794757,0.15037305,143.54,143.53,9.756796]
[1724313794945,0.15037305,143.54,143.53,2.789696]
[1724313797048,0.15037305,143.54,143.5,20.0]
[1724313797454,0.15037305,143.54,143.5,32.321302]
[1724313798983,0.15037305,143.54,143.51,8.36115765]
[1724313799153,0.15037305,143.54,143.52,1.39325327]
[1724313799553,0.15037305,143.54,143.5,39.289802]
[1724313800582,0.15037305,143.54,143.5,32.321302]
[1724313800884,0.14920626,143.51,143.49,24.3916]
[1724313801089,0.14920626,143.51,143.5,10.579701]
[1724313802263,0.14920626,143.51,143.5,17.548301]
[1724313805682,0.14920626,143.51,143.5,10.579701]
[1724313806068,0.14920626,143.51,143.49,24.3914]
[1724313806266,0.14920626,143.51,143.5,2.790983]
[1724313810816,10.58920626,143.51,143.46,154.73695898]
[1724313811003,10.44,143.48,143.46,154.73695898]
[1724313813311,10.44,143.5,143.46,154.73695898]
[1724313813698,0.14920626,143.51,143.46,154.73695898]
[1724313815716,1.89151645,143.51,143.46,154.73695898]
[1724313815922,0.14920626,143.51,143.46,154.73695898]
[1724313816215,0.14920626,143.51,143.47,8.36364472]
[1724313816516,0.14920626,143.51,143.47,18.81874472]
[1724313816706,0.14920626,143.51,143.46,154.73695898]
[1724313817602,10.58920626,143.51,143.46,154.73695898]
[1724313817802,1.74230819,143.5,143.46,154.73695898]
[1724313817995,10.44,143.49,143.46,154.73695898]
[1724313819121,10.58920626,143.51,143.46,154.73695898]
[1724313820418,21.6506,143.5,143.38,246.35852129]
[1724313820595,21.6506,143.5,143.38,6.9742]
[1724313820596,26.18,143.45,143.38,6.9742]
[1724313820796,0.13207921,143.39,143.38,6.9742]
[1724313821215,0.13207921,143.39,143.38,9.767337]
[1724313822225,0.13207921,143.39,143.38,11.16194463]
[1724313822429,0.13207921,143.39,143.38,2.793137]
[1724313822822,0.13207921,143.39,143.38,9.767537]
[1724313823020,0.13207921,143.39,143.38,2.793137]
[1724313825456,26.31207921,143.39,143.36,0.8533722]
[1724313826348,0.13207921,143.39,143.36,0.8533722]
[1724313828258,1.87604256,143.39,143.36,0.8533722]
[1724313828437,28.05604256,143.39,143.36,0.8533722]
[1724313829253,0.13207921,143.39,143.36,0.8533722]
[1724313837061,0.13207921,143.39,143.36,3.6471672]
[1724313837561,0.13207921,143.39,143.36,10.6224672]
[1724313840764,0.13305424,143.37,143.36,10.6224672]
[1724313841263,0.13305424,143.37,143.36,3.6471672]
[1724313842564,0.13305424,143.37,143.36,0.8533722]
[1724313846456,0.13305424,143.37,143.36,0.7933722]
[1724313846747,7.10795424,143.37,143.36,0.7933722]
[1724313847349,0.13305424,143.37,143.36,0.7933722]
[1724313848560,7.10795424,143.37,143.36,0.7933722]
[1724313848779,6.9762,143.35,143.26,24.4298]
[1724313848945,1.74455521,143.34,143.27,13.9578]
[1724313849134,1.74455521,143.34,143.27,6.9796]
[1724313849554,1.74455521,143.34,143.26,24.4299]
[1724313849555,8.72105521,143.34,143.26,24.4299]
[1724313849962,6.9765,143.34,143.26,24.4299]
[1724313850153,0.12549,143.36,143.28,6.9789]
[1724313850154,6.9755,143.36,143.28,6.9789]
[1724313850345,29.87215424,143.37,143.28,6.9789]
[1724313850346,3.69215424,143.37,143.28,17.448]
[1724313850650,1.74435176,143.36,143.28,17.448]
[1724313851036,10.66725424,143.37,143.29,6.9783]
[1724313851240,1.74432928,143.36,143.29,6.9783]
[1724313851545,1.74434232,143.35,143.29,6.9783]
[1724313851757,1.74434232,143.35,143.28,24.4271]
[1724313852056,1.74434232,143.35,143.29,6.9788]
[1724313852366,1.74434214,143.36,143.29,6.9788]
[1724313852570,1.74434376,143.35,143.29,6.9788]
[1724313853071,1.74434376,143.35,143.26,46.18]
[1724313853072,6.9765,143.34,143.26,6.9803]
[1724313853268,33.1561,143.35,143.27,26.9798]
[1724313853877,6.9761,143.35,143.27,26.9798]
[1724313854566,29.87215424,143.37,143.28,1.3956661]
[1724313854741,1.74440886,143.36,143.28,6.9791]
[1724313854950,1.74443934,143.35,143.28,6.9791]
[1724313855477,8.72033934,143.35,143.27,44.429]
[1724313855845,6.9755,143.36,143.28,6.9793]
[1724313856165,1.7445219,143.35,143.28,6.9793]
[1724313856389,8.7204219,143.35,143.27,44.4289]
[1724313856571,6.9759,143.35,143.27,24.4289]
[1724313856755,29.87215424,143.37,143.28,6.9792]
[1724313856756,6.9755,143.36,143.28,6.9792]
[1724313857874,1.74443774,143.35,143.28,6.9792]
[1724313858462,1.74443774,143.35,143.3,6.9783]
[1724313858776,29.87215424,143.37,143.27,17.4493]
[1724313858961,36.84735424,143.37,143.29,6.9787]
[1724313859768,29.87215424,143.37,143.3,6.9783]
[1724313859964,3.69215424,143.37,143.3,6.9783]
[1724313860177,3.69215424,143.37,143.31,6.9777]
[1724313860772,0.1407342,143.32,143.31,6.9777]
[1724313861082,0.1407342,143.32,143.31,8.37296767]
[1724313861270,0.1407342,143.32,143.31,53.37296767]
[1724313861477,0.1407342,143.32,143.31,52.16868]
[1724313867088,0.1407342,143.32,143.31,51.9177]
[1724313867286,0.1407342,143.32,143.31,6.9177]
[1724313867483,0.1407342,143.32,143.3,33.9342]
[1724313867997,0.1407342,143.32,143.3,23.4542]
[1724313868578,0.1407342,143.32,143.3,6.9781]
[1724313868906,0.1407342,143.32,143.26,30.48]
[1724313869095,0.1407342,143.32,143.3,17.4454]
[1724313869291,0.1407342,143.32,143.31,6.9778]
[1724313870175,0.1407342,143.32,143.31,52.22878]
[1724313872105,0.1407342,143.32,143.31,53.62394089]
[1724313872312,0.1407342,143.32,143.31,73.62394089]
[1724313877627,0.1407342,143.32,143.31,84.10394089]
[1724313878511,0.1407342,143.32,143.31,86.89807089]
[1724313878683,0.14600213,143.33,143.32,26.9773]
[1724313878888,0.13138313,143.35,143.34,20.0]
[1724313879117,0.13138313,143.35,143.34,32.12562288]
[1724313879297,0.13138313,143.35,143.34,97.12562288]
[1724313879690,0.13138313,143.35,143.34,99.91928088]
[1724313880105,0.13138313,143.35,143.34,106.89568088]
[1724313880797,0.2802033,143.35,143.34,106.89568088]
[1724313881491,0.14882017,143.35,143.34,106.89568088]
[1724313885030,0.14453245,143.36,143.35,6.9759]
[1724313885209,0.13342055,143.37,143.36,44.414]
[1724313885411,0.13342055,143.37,143.36,121.53951344]
[1724313886328,0.13010546,143.38,143.36,156.48411344]
[1724313886535,0.13703445,143.39,143.38,37.4544]
[1724313886721,0.13703445,143.39,143.38,104.09968757]
[1724313887231,0.13703445,143.39,143.38,106.89261057]
[1724313890114,0.13703445,143.39,143.38,85.498303]
[1724313892512,0.13703445,143.39,143.38,106.89271392]
[1724313892721,0.13703445,143.39,143.38,105.498303]
[1724313893033,0.13703445,143.39,143.38,106.89257124]
[1724313894320,0.13703445,143.39,143.38,105.498303]
[1724313895324,0.12778534,143.43,143.39,24.4088]
[1724313895630,0.12778534,143.43,143.4,104.0985757]
[1724313898056,0.12778534,143.43,143.4,96.4109867]
[1724313898263,0.12778534,143.43,143.4,105.496891]
[1724313900240,0.12778534,143.43,143.4,85.496891]
[1724313900446,0.12778534,143.43,143.4,29.765911]
[1724313900641,0.12778534,143.43,143.4,49.765911]
[1724313901480,10.48,143.48,143.42,6.9725]
[1724313901639,21.6845,143.49,143.42,6.9725]
[1724313902451,23.42714929,143.49,143.43,17.4519]
[1724313902757,21.6845,143.49,143.44,1.39407024]
[1724313903963,21.6845,143.49,143.43,17.4519]
[1724313904157,10.48,143.48,143.41,17.55779]
[1724313904345,1.74274857,143.47,143.42,0.12549]
[1724313905160,1.74274857,143.47,143.4,22.792411]
[1724313905374,8.71284857,143.47,143.4,2.792411]
[1724313905744,10.48,143.46,143.4,2.792411]
[1724313905954,1.74306527,143.45,143.4,2.792411]
[1724313906654,17.4506,143.46,143.4,2.792411]
[1724313907241,10.48,143.46,143.4,2.792411]
[1724313910472,12.22302055,143.46,143.4,2.792411]
[1724313911051,1.74302469,143.45,143.4,2.792411]
[1724313912257,17.4502,143.47,143.41,1.39449766]
[1724313912456,17.4502,143.47,143.4,2.792411]
[1724313912862,6.9702,143.47,143.4,4.18683904]
[1724313913077,17.4502,143.47,143.4,4.18683904]
[1724313914945,17.4502,143.47,143.4,2.792411]
[1724313915380,1.74302615,143.46,143.4,2.792411]
[1724313916254,1.74304471,143.45,143.4,2.792411]
[1724313916762,12.22304471,143.45,143.4,2.792411]
[1724313916956,12.22304471,143.45,143.38,24.4095]
[1724313919487,6.9702,143.47,143.39,6.9739]
[1724313919665,6.9699,143.48,143.4,7.09879]
[1724313919869,17.4499,143.48,143.4,7.09879]
[1724313920488,17.4499,143.48,143.41,10.48]
[1724313920698,28.6537,143.49,143.41,17.4529]
[1724313922595,21.6845,143.49,143.42,7.09789]
[1724313922785,21.6845,143.49,143.42,7.22338]
[1724313923687,23.42713688,143.49,143.42,7.22338]
[1724313924380,21.6845,143.49,143.42,7.22338]
[1724313925367,1.74263497,143.48,143.42,7.22338]
[1724313927472,6.9677,143.52,143.45,10.48]
[1724313927681,6.9677,143.52,143.46,1.39393785]
[1724313928610,29.163,143.53,143.46,1.39393785]
[1724313928898,22.1957,143.53,143.47,10.48]
[1724313929203,22.1957,143.53,143.47,11.87384301]
[1724313929678,21.6579,143.58,143.48,6.9695]
[1724313929998,10.48,143.57,143.49,1.39364109]
[1724313930308,17.4454,143.57,143.49,18.84264109]
[1724313930472,6.9657,143.56,143.49,11.87364109]
[1724313931298,6.9657,143.56,143.49,10.48]
[1724313932495,1.74195945,143.55,143.48,24.3932]
[1724313932808,1.74204133,143.54,143.48,17.4238]
[1724313933498,6.9658,143.56,143.49,10.48]
[1724313933700,6.9658,143.56,143.49,11.87367764]
[1724313935113,6.9658,143.56,143.49,10.48]
[1724313935328,6.9658,143.56,143.48,24.3933]
[1724313935826,1.74194282,143.55,143.48,24.3933]
[1724313936029,1.74194282,143.55,143.49,0.12549]
[1724313937722,12.22194282,143.55,143.49,0.12549]
[1724313937898,1.74193356,143.54,143.49,0.12549]
[1724313938916,10.48,143.55,143.49,7.09459]
[1724313939627,10.48,143.55,143.49,0.12549]
[1724313940012,10.48,143.55,143.49,52.21988]
[1724313942307,1.74182394,143.54,143.49,0.25098]
[1724313942630,1.74182394,143.54,143.49,0.12549]
[1724313943127,1.74182394,143.54,143.48,17.4238]
[1724313944534,1.74182394,143.54,143.48,24.3933]
[1724313945349,10.48,143.53,143.46,16.5129]
[1724313945624,10.48,143.54,143.47,10.48]
[1724313946431,6.9665,143.55,143.47,34.8748]
[1724313946634,6.9665,143.55,143.48,0.25098]
[1724313946934,6.9665,143.55,143.47,34.8748]
[1724313946935,1.74198762,143.54,143.47,34.8748]
[1724313947105,19.18868762,143.54,143.47,24.3948]
[1724313947420,17.4467,143.54,143.47,24.3948]
[1724313947741,10.48,143.54,143.47,24.3948]
[1724313947919,1.74216243,143.53,143.47,24.3948]
[1724313948239,10.48,143.54,143.48,0.12549]
[1724313949539,10.48,143.54,143.48,0.25098]
[1724313949740,12.22203594,143.54,143.48,0.25098]
[1724313951232,19.18883594,143.54,143.47,27.9051]
[1724313951445,17.4468,143.54,143.47,27.9051]
[1724313951739,1.74216938,143.57,143.47,27.9051]
[1724313951740,17.4463,143.55,143.48,52.22048]
[1724313951935,17.4463,143.55,143.47,34.875]
[1724313952147,17.4463,143.55,143.48,0.12549]
[1724313952315,1.74207412,143.54,143.48,0.12549]
[1724313952519,8.70877412,143.54,143.48,0.12549]
[1724313952721,6.9667,143.54,143.47,34.875]
[1724313954071,1.742132,143.53,143.47,34.875]
[1724313958449,6.9667,143.54,143.47,34.875]
[1724313959142,6.9667,143.54,143.47,24.395]
[1724313959842,17.4472,143.53,143.46,16.63839]
[1724313960146,1.74222106,143.52,143.46,16.63839]
[1724313960349,1.74222716,143.51,143.46,16.5129]
[1724313960922,12.22222716,143.51,143.46,16.5129]
[1724313961128,10.48,143.49,143.43,16.6431]
[1724313961349,1.74282415,143.48,143.43,16.6431]
[1724313961574,10.48,143.47,143.43,6.1631]
[1724313961929,17.4493,143.49,143.43,6.1631]
[1724313962537,1.74280159,143.48,143.43,6.1631]
[1724313967471,10.48,143.47,143.43,6.1631]
[1724313967848,1.74281186,143.46,143.43,6.1631]
[1724313968059,1.74281186,143.46,143.42,16.5]
[1724313968772,12.22300462,143.45,143.42,16.5]
[1724313969846,6.9701,143.47,143.42,16.5]
[1724313970049,10.48,143.47,143.42,16.5]
[1724313970266,12.22280776,143.47,143.42,16.5]
[1724313970936,10.48,143.47,143.42,16.5]
[1724313971246,17.4492,143.49,143.42,16.5]
[1724313971446,1.74280701,143.48,143.42,16.5]
[1724313972663,8.71240701,143.48,143.42,16.5]
[1724313972940,7.26507722,143.53,143.43,18.02953352]
[1724313973142,7.26507722,143.53,143.44,21.64499359]
[1724313973143,10.48,143.53,143.44,21.64499359]
[1724313973362,17.4473,143.53,143.45,6.971]
[1724313974872,1.74241997,143.52,143.45,6.971]
[1724313975269,1.74241997,143.52,143.44,82.67958]
[1724313975473,17.4482,143.51,143.44,17.4286]
[1724313975657,10.48,143.49,143.43,6.1552]
[1724313975857,10.48,143.47,143.43,6.1552]
[1724313976074,1.74288181,143.46,143.43,6.1552]
[1724313978671,1.74288181,143.46,143.42,16.5]
[1724313979453,10.48,143.47,143.42,16.5]
[1724313980599,1.74304702,143.46,143.42,16.5]
[1724313981602,1.74304968,143.45,143.42,16.5]
[1724313982688,1.74313733,143.46,143.42,16.5]
[1724313982991,1.74313784,143.45,143.42,16.5]
[1724313983874,1.74313666,143.46,143.42,16.5]
[1724313984079,1.74313673,143.45,143.42,16.5]
[1724313984383,12.22313673,143.45,143.39,22.3359]
[1724313984579,12.22313673,143.45,143.39,15.8963]
[1724313984580,10.48,143.43,143.39,15.8963]
[1724313984782,1.7434217,143.42,143.39,15.8963]
[1724313985500,1.7434217,143.42,143.36,22.6408]
[1724313988185,10.48,143.43,143.36,22.6408]
[1724313988383,1.74351455,143.42,143.36,22.6408]
[1724313990503,1.74351455,143.42,143.36,15.6656]
[1724313991104,8.71631455,143.42,143.36,15.6656]
[1724313991407,10.48,143.41,143.36,15.6656]
[1724313991629,1.74374491,143.4,143.36,15.6656]
[1724313991985,10.48,143.41,143.36,15.6656]
[1724313992206,17.4522,143.43,143.36,15.6656]
[1724313992503,1.7435256,143.42,143.36,15.6656]
[1724313993009,17.4522,143.43,143.36,15.6656]
[1724313993484,6.9717,143.44,143.36,33.1039]
[1724313993811,10.48,143.44,143.37,8.369688]
[1724313994015,17.4515,143.44,143.37,8.369688]
[1724313994388,10.48,143.44,143.37,8.369688]
[1724313995109,17.4515,143.44,143.37,6.9749]
[1724313995416,1.74342847,143.43,143.37,6.9749]
[1724313996523,17.4515,143.44,143.37,6.9749]
[1724314000527,1.74342705,143.43,143.37,6.9749]
[1724314000731,17.4515,143.44,143.37,6.9749]
[1724314001427,1.74342691,143.43,143.37,6.9749]
[1724314002027,17.4515,143.44,143.37,6.9749]
[1724314002599,1.7434261,143.43,143.37,6.9749]
[1724314003612,17.4515,143.44,143.37,6.9749]
[1724314004021,10.48,143.44,143.37,6.9749]
[1724314004226,10.48,143.44,143.36,33.1039]
[1724314004715,17.4516,143.44,143.36,40.079]
[1724314005031,17.4516,143.44,143.37,8.36954925]
[1724314006321,6.9707,143.46,143.38,17.4359]
[1724314006527,10.48,143.46,143.39,6.9736]
[1724314007133,1.74317846,143.45,143.39,6.9736]
[1724314007309,10.48,143.46,143.39,6.9736]
[1724314008039,10.48,143.46,143.4,6.9732]
[1724314008334,10.48,143.46,143.39,6.9738]
[1724314008540,10.48,143.46,143.4,1.39445896]